fUSD/lending_fUSD_20251227
["ID","MTS","AMOUNT","RATE_DAILY","PERIOD"]
[399889265,1766815833269,-500.0,0.00016125,2]
[399889266,1766815833279,-250.0,0.00016125,2]
[399889267,1766815833288,-239.84119403,0.00016125,2]
[399889268,1766815833298,-250.0,0.00016125,2]
[399889269,1766815833308,-250.0,0.00016125,2]
[399889270,1766815833318,-500.0,0.00016125,2]
[399889271,1766815833329,-250.0,0.00016125,2]
[399889272,1766815833339,-248.71531821,0.00016125,2]
[399889273,1766815833349,-284.00951842,0.00016125,2]
[399889274,1766815833359,-282.85294632,0.00016125,2]
[399889275,1766815833368,-500.0,0.00016125,2]
[399889276,1766815833378,-257.91778498,0.00016125,2]
[399889277,1766815833387,-500.0,0.00016125,2]
[399889278,1766815833398,-267.46074303,0.00016125,2]
[399889279,1766815833408,-500.0,0.00016125,2]
[399889280,1766815833418,-500.0,0.00016125,2]
[399889281,1766815833428,-277.35679052,0.00016125,2]
[399889282,1766815833439,-500.0,0.00016125,2]
[399889283,1766815833448,-500.0,0.00016125,2]
[399889284,1766815833459,-574.12855637,0.00016125,2]
[399889285,1766815833469,-500.0,0.00016125,2]
[399889286,1766815833478,-500.0,0.00016125,2]
[399889287,1766815833488,-620.0,0.00016125,2]
[399889288,1766815833498,-500.0,0.00016125,2]
[399889289,1766815833512,-500.0,0.00016125,2]
[399889290,1766815833523,-500.0,0.00016125,2]
[399889291,1766815833533,-500.0,0.00016125,2]
[399889292,1766815833543,-500.0,0.00016125,2]
[399889293,1766815833554,-500.0,0.00016125,2]
[399889294,1766815833563,-152.20980143,0.00016125,2]
[399889295,1766815833574,-500.0,0.00016125,2]
[399889296,1766815833586,-500.0,0.00016125,2]
[399889297,1766815833596,-500.0,0.00016125,2]
[399889298,1766815833605,-500.0,0.00016125,2]
[399889299,1766815833615,-500.0,0.00016125,2]
[399889300,1766815833625,-578.20924308,0.00016125,2]
[399889301,1766815833635,-500.0,0.00016125,2]
[399889302,1766815833645,-500.0,0.00016125,2]
[399889303,1766815833655,-500.0,0.00016125,2]
[399889304,1766815833664,-500.0,0.00016125,2]
[399889305,1766815833674,-500.0,0.00016125,2]
[399889306,1766815833684,-500.0,0.00016125,2]
[399889307,1766815833694,-500.0,0.00016125,2]
[399889308,1766815833704,-322.6107,0.00016125,2]
[399889309,1766815833714,-250.0,0.00016125,2]
[399889310,1766815833724,-250.0,0.00016125,2]
[399889311,1766815833734,-250.0,0.00016125,2]
[399889312,1766815833743,-250.0,0.00016125,2]
[399889313,1766815833754,-250.0,0.00016125,2]
[399889314,1766815833764,-250.0,0.00016125,2]
[399889315,1766815833774,-250.0,0.00016125,2]
[399889316,1766815833784,-250.0,0.00016125,2]
[399889317,1766815833794,-250.0,0.00016125,2]
[399889318,1766815833804,-250.0,0.00016125,2]
[399889319,1766815833814,-250.0,0.00016125,2]
[399889320,1766815833824,-253.95005822,0.00016324,2]
[399889321,1766815833834,-3821.05509974,0.00016421,2]
[399889322,1766815833847,-1872.01000901,0.00016421,2]
[399889323,1766815833859,-518.04655203,0.00016421,2]
[399889324,1766815833871,-999.0,0.00016421,2]
[399889325,1766815833894,-151.0,0.00015741,2]
[399889326,1766815833904,-195.78075065,0.00016421,2]
[399889330,1766815838080,-170.8649845,0.00012373,2]
[399889331,1766815838091,-500.0,0.00014363,2]
[399889332,1766815838102,-500.0,0.00014363,2]
[399889333,1766815838113,-500.0,0.00014363,2]
[399889334,1766815838123,-553.37293,0.00014363,2]
[399889335,1766815838134,-500.0,0.00014363,2]
[399889336,1766815838144,-500.0,0.00014363,2]
[399889337,1766815838154,-500.0,0.00014363,2]
[399889338,1766815838163,-500.0,0.00014363,2]
[399889339,1766815838173,-500.0,0.00014363,2]
[399889340,1766815838183,-500.0,0.00014363,2]
[399889341,1766815838193,-500.0,0.00014363,2]
[399889342,1766815838203,-500.0,0.00014363,2]
[399889343,1766815838214,-500.0,0.00014363,2]
[399889344,1766815838224,-500.0,0.00014363,2]
[399889345,1766815838234,-500.0,0.00014363,2]
[399889346,1766815838243,-500.0,0.00014363,2]
[399889347,1766815838253,-500.0,0.00014363,2]
[399889348,1766815838263,-500.0,0.00014363,2]
[399889349,1766815838272,-325.96682316,0.00014363,2]
[399889350,1766815838281,-500.0,0.00014363,2]
[399889351,1766815838291,-500.0,0.00014363,2]
[399889352,1766815838301,-500.0,0.00014363,2]
[399889353,1766815838310,-500.0,0.00014363,2]
[399889354,1766815838320,-500.0,0.00014363,2]
[399889355,1766815838330,-500.0,0.00014363,2]
[399889356,1766815838339,-500.0,0.00014363,2]
[399889357,1766815838349,-500.0,0.00014363,2]
[399889358,1766815838359,-34.42635228,0.00014363,2]
[399889359,1766815838373,-465.57364772,0.00014363,2]
[399889360,1766815838383,-500.0,0.00014363,2]
[399889361,1766815838393,-376.12408485,0.00014363,2]
[399889362,1766815838405,-123.87591515,0.00014363,2]
[399889363,1766815838416,-500.0,0.00014363,2]
[399889365,1766815838426,-500.0,0.00014363,2]
[399889367,1766815838436,-136.12408485,0.00015741,2]
[399889369,1766815838447,-14.87591515,0.00015741,2]
[399889371,1766815838458,-1103.22411485,0.00016421,2]
[399889373,1766815838471,-6984.52467027,0.00016421,2]
[399889374,1766815838481,-500.0,0.00016438,2]
[399889376,1766815838491,-611.86082501,0.00016438,2]
[399889378,1766815838502,-500.0,0.00016438,2]
[399889380,1766815838522,-500.0,0.00016438,2]
[399889382,1766815838532,-500.0,0.00016438,2]
[399889384,1766815838552,-500.0,0.00016438,2]
[399889386,1766815838565,-49883.4961812,0.00016509,2]
[399889388,1766815838575,-28363.9581077,0.00016509,2]
[399889389,1766815838588,-1099.0,0.00016522,2]
[399889391,1766815838598,-1046.87343686,0.0001664,2]
[399889394,1766815838806,-1613.0535,0.00016673,2]
[399889395,1766815838816,-595.37131296,0.00016673,2]
[399889396,1766815838825,-253.95005822,0.00016718,2]
[399889397,1766815838835,-150.0,0.00016725,2]
[399889398,1766815838844,-500.0,0.00016725,2]
[399889399,1766815838854,-150.0,0.00016725,2]
[399889400,1766815838864,-150.0,0.00016725,2]
[399889401,1766815838873,-500.0,0.00016725,2]
[399889402,1766815838883,-353.88,0.00016735,2]
[399889403,1766815838892,-150.0,0.00016752,2]
[399889404,1766815838902,-500.0,0.00016752,2]
[399889405,1766815838912,-150.0,0.00016752,2]
[399889406,1766815838922,-500.0,0.00016752,2]
[399889407,1766815838931,-150.0,0.0001678,2]
[399889408,1766815838941,-500.0,0.0001678,2]
[399889409,1766815838951,-277.44379661,0.0001678,2]
[399889410,1766815838962,-500.0,0.0001678,2]
[399889411,1766815838972,-569.79541579,0.00016807,2]
[399889412,1766815838981,-150.0,0.00016807,2]
[399889413,1766815838991,-500.0,0.00016807,2]
[399889414,1766815839002,-500.0,0.00016807,2]
[399889415,1766815839012,-150.0,0.00016835,2]
[399889416,1766815839022,-500.0,0.00016835,2]
[399889417,1766815839032,-397.58247982,0.00016835,2]
[399889418,1766815839042,-174.22947245,0.00016862,2]
[399889419,1766815839052,-500.0,0.00016862,2]
[399889420,1766815839064,-200.0,0.00016864,2]
[399889421,1766815839074,-500.0,0.00016889,2]
[399889422,1766815839084,-223.878644,0.000169,2]
[399889423,1766815839094,-624.69271466,0.000169,2]
[399889424,1766815839104,-224.72342656,0.000169,2]
[399889425,1766815839114,-500.0,0.00016917,2]
[399889426,1766815839124,-500.0,0.00016944,2]
[399889427,1766815839134,-500.0,0.00016972,2]
[399889428,1766815839145,-173.10310192,0.00016999,2]
[399889429,1766815839156,-1115.60769283,0.00016999,5]
[399889430,1766815839167,-1115.60769283,0.00016999,5]
[399889431,1766815839177,-1115.60769283,0.00016999,5]
[399889432,1766815839187,-1115.60769283,0.00016999,5]
[399889433,1766815839197,-1115.60769283,0.00016999,5]
[399889434,1766815839207,-1115.60769283,0.00016999,5]
[399889435,1766815839216,-313.99302103,0.00016999,2]
[399889436,1766815839226,-300.0,0.00016999,2]
[399889437,1766815839235,-675.6926152,0.00016999,2]
[399889438,1766815839245,-1393.0,0.00017,2]
[399889439,1766815839255,-151985.97828773,0.00017,2]
[399889440,1766815839268,-16402.00640134,0.00017,2]
[399889445,1766815840238,-8968.96,0.00017,2]
[399889446,1766815840250,-6057.14710165,0.00017,2]
[399889447,1766815840261,-2175.02066338,0.00017,2]
[399889448,1766815840274,-1109.86639144,0.00017,2]
[399889449,1766815840349,-999.99995,0.00017,2]
[399889450,1766815840360,-1103.60010326,0.00017,2]
[399889461,1766815844222,-49699.31148721,0.00017,2]
[399889462,1766815844276,-3874.85299278,0.00017,2]
[399889463,1766815845358,-676.04070624,0.00017,2]
[399889464,1766815845401,-500.0,0.00017,2]
[399889472,1766815846125,-3838.64415084,0.00017,2]
[399889473,1766815846137,-13054.6975725,0.00017,2]
[399889474,1766815846183,-423.74647872,0.00017,2]
[399889475,1766815846196,-2183.75458493,0.00017,2]
[399889476,1766815846353,-1186.08870004,0.00017,2]
[399889477,1766815846366,-1203.37088605,0.00017,2]
[399889478,1766815846378,-611.68963455,0.00017,2]
[399889479,1766815846389,-433.02848958,0.00017,2]
[399889480,1766815846407,-274.18,0.00017,2]
[399889481,1766815846420,-1185.3213471,0.00017,2]
[399889483,1766815846431,-2245.3092668,0.00017,2]
[399889484,1766815846443,-404.72580003,0.00017,2]
[399889485,1766815846455,-745.7042,0.00017,2]
[399889486,1766815846467,-3433.31960973,0.00017,2]
[399889487,1766815846479,-3211.19705008,0.00017,2]
[399889488,1766815846491,-3199.82079988,0.00017,2]
[399889489,1766815846503,-154296.18406026,0.00017,2]
[399889492,1766815846517,-709.29405836,0.00017,2]
[399889495,1766815846529,-139947.86825618,0.00017,2]
[399889515,1766816760268,2354.8513856,8e-05,2]
[399889517,1766816830579,205.0,9.8e-05,2]
[399889518,1766816834895,259.14558225,0.000101,2]
[399889519,1766816896084,1926.44963511,0.0001,2]
[399889520,1766816897716,390.4720529,7.888e-05,2]
[399889522,1766816907531,2728.2249976,0.0001,2]
[399889536,1766817032169,-153.23,0.00011976,2]
[399889537,1766817032179,-248.0,0.00011976,2]
[399889538,1766817032190,-300.0,0.00013173,2]
[399889539,1766817032200,-114.63407937,0.00013473,2]
[399889540,1766817032212,-38.59592063,0.00013473,2]
[399889541,1766817032222,-500.0,0.00013878,2]
[399889542,1766817032232,-300.0,0.0001416,2]
[399889543,1766817032242,-1200.0,0.0001416,2]
[399889544,1766817032265,-167.29,0.0001416,2]
[399889545,1766817032278,-132.71,0.0001416,2]
[399889546,1766817032288,-188.11599205,0.00014161,2]
[399889547,1766817032298,-867.17400795,0.00014161,2]
[399889548,1766817032314,-2014.01746193,0.00014161,2]
[399889549,1766817032331,-2325.98253807,0.00014162,2]
[399889550,1766817032344,-877.5,0.00014162,2]
[399889551,1766817032356,-503.95767699,0.00014162,2]
[399889552,1766817032367,-1503.5799839,0.00014162,2]
[399889553,1766817032379,-462.29407284,0.00014162,2]
[399889554,1766817032391,-296.0765777,0.00014162,2]
[399889555,1766817032403,-145895.09738188,0.00014162,2]
[399889556,1766817032415,-74950.94397969,0.00014162,2]
[399889557,1766817032427,-37490.87724747,0.00014162,2]
[399889558,1766817032438,-6185.60238015,0.00014162,2]
[399889560,1766817032450,-12067.52916131,0.00014162,2]
[399889562,1766817032460,-247.463,0.00014262,2]
[399889564,1766817032470,-1040.9844039,0.00014392,2]
[399889566,1766817032480,-166.66,0.00014591,2]
[399889568,1766817032491,-837.61112145,0.000147,2]
[399889570,1766817032501,-2346.26,0.00014881,2]
[399889572,1766817032511,-166.66,0.00014899,2]
[399889573,1766817032521,-200.0,0.00014942,2]
[399889574,1766817032531,-153.23,0.0001497,2]
[399889575,1766817032541,-1040.9844039,0.00015004,2]
[399889577,1766817032551,-166.66,0.00015206,2]
[399889578,1766817032561,-200.0,0.00015307,2]
[399889579,1766817032571,-151.0,0.0001539,2]
[399889580,1766817032580,-151.0,0.0001539,2]
[399889581,1766817032590,-166.66,0.00015513,2]
[399889582,1766817032600,-1040.9844039,0.00015616,2]
[399889583,1766817032610,-166.66,0.0001582,2]
[399889584,1766817032620,-14949.00371285,0.00016,2]
[399889585,1766817032641,-3794.84900764,0.00016,2]
[399889586,1766817032652,-2247.99090431,0.00016,4]
[399889587,1766817032663,-763.04969767,0.00016,4]
[399889588,1766817032675,-8307.23268205,0.00016,4]
[399889589,1766817038202,-151.0,0.00015779,2]
[399889590,1766817038213,-151.0,0.00015779,2]
[399889591,1766817038223,-15398.5976798,0.00016,4]
[399889592,1766817038261,-857.75551209,0.00016,4]
[399889593,1766817038324,-7960.0,0.00016,4]
[399889594,1766817038384,-26408.07919551,0.00016,4]
[399889595,1766817038394,-250.0,0.00016094,2]
[399889596,1766817038404,-250.0,0.00016094,2]
[399889597,1766817038414,-500.0,0.00016094,2]
[399889598,1766817038424,-322.6107,0.00016094,2]
[399889599,1766817038434,-250.0,0.00016094,2]
[399889600,1766817038444,-500.0,0.00016094,2]
[399889601,1766817038454,-250.0,0.00016094,2]
[399889602,1766817038463,-500.0,0.00016094,2]
[399889603,1766817038473,-250.0,0.00016094,2]
[399889604,1766817038488,-500.0,0.00016094,2]
[399889605,1766817038498,-250.0,0.00016094,2]
[399889606,1766817038508,-500.0,0.00016094,2]
[399889607,1766817038518,-250.0,0.00016094,2]
[399889608,1766817038527,-500.0,0.00016094,2]
[399889609,1766817038537,-250.0,0.00016094,2]
[399889610,1766817038547,-500.0,0.00016094,2]
[399889611,1766817038556,-200.0,0.00016094,2]
[399889614,1766817038566,-250.0,0.00016094,2]
[399889616,1766817038576,-500.0,0.00016094,2]
[399889618,1766817038585,-207.4,0.00016094,2]
[399889620,1766817038595,-250.0,0.00016094,2]
[399889622,1766817038605,-574.12855637,0.00016094,2]
[399889623,1766817038614,-500.0,0.00016094,2]
[399889624,1766817038626,-178.47988623,0.00016094,2]
[399889625,1766817038635,-250.0,0.00016094,2]
[399889626,1766817038650,-500.0,0.00016094,2]
[399889627,1766817038659,-500.0,0.00016094,2]
[399889628,1766817038668,-620.0,0.00016094,2]
[399889629,1766817038678,-367.32344055,0.00016094,2]
[399889630,1766817038687,-500.0,0.00016094,2]
[399889631,1766817038697,-500.0,0.00016094,2]
[399889632,1766817038707,-500.0,0.00016094,2]
[399889633,1766817038716,-500.0,0.00016094,2]
[399889634,1766817038725,-500.0,0.00016094,2]
[399889635,1766817038735,-500.0,0.00016094,2]
[399889636,1766817038745,-500.0,0.00016094,2]
[399889637,1766817038755,-500.0,0.00016094,2]
[399889638,1766817038764,-500.0,0.00016094,2]
[399889639,1766817038773,-500.0,0.00016094,2]
[399889640,1766817038783,-500.0,0.00016094,2]
[399889641,1766817038792,-672.33999994,0.00016094,2]
[399889642,1766817038802,-166.66,0.00016127,2]
[399889643,1766817038811,-425.41,0.00016148,2]
[399889644,1766817038821,-1040.9844039,0.00016228,2]
[399889645,1766817038831,-153.23,0.00016467,2]
[399889646,1766817038840,-150.0,0.00016571,2]
[399889647,1766817038850,-595.37131296,0.00016642,2]
[399889648,1766817038864,-1653.18321645,0.0001666,2]
[399889649,1766817038873,-1040.9844039,0.0001684,2]
[399889650,1766817038884,-191.89598058,0.000169,2]
[399889651,1766817038894,-175.8834298,0.000169,2]
[399889652,1766817038905,-416.46180976,0.000169,2]
[399889653,1766817038914,-18135.66,0.00016922,2]
[399889654,1766817038925,-9999.99,0.00016922,2]
[399889655,1766817038935,-29999.99,0.00016922,2]
[399889656,1766817038945,-200.0,0.00016986,5]
[399889657,1766817038955,-1054.09474226,0.00016999,5]
[399889658,1766817038965,-300.0,0.00016999,2]
[399889659,1766817038976,-1124.0,0.00017,2]
[399889660,1766817038985,-146487.36043493,0.00017,2]
[399889671,1766817043993,-371.91784528,0.00015994,2]
[399889678,1766817044056,-969.04,0.00015994,2]
[399889681,1766817044964,-2001.26655933,0.00015994,2]
[399889682,1766817044977,-1212.88580532,0.00015994,2]
[399889683,1766817044987,-797.61122864,0.00017,2]
[399889685,1766817046288,-224.72342654,0.000169,2]
[399889686,1766817046300,-409.12677846,0.00017,2]
[399889687,1766817046312,-2505.35903128,0.00017,2]
[399889688,1766817046461,-1585.57444177,0.00017,2]
[399889708,1766817412138,1075.26,7.892e-05,2]
[399889709,1766817412225,1075.26,8.308e-05,2]
[399889710,1766817412439,1075.26,8.723e-05,2]
[399889711,1766817412638,1075.26,9.138e-05,2]
[399889712,1766817412825,653.82331439,9.554e-05,2]
[399889713,1766817412849,421.43668561,9.554e-05,2]
[399889714,1766817413033,1075.26,9.969e-05,2]
[399889715,1766817413227,1075.26,0.00010384,2]
[399889716,1766817417696,-476.2085002,0.000108,2]
[399889717,1766817421641,-243.50283662,0.000108,2]
[399889718,1766817423243,-164.72503701,0.000108,2]
[399889719,1766817427070,-156.18120555,0.000108,2]
[399889722,1766817430944,-34.64242062,0.000108,2]
[399889723,1766817430969,-267.86472291,0.00011215,2]
[399889724,1766817432837,-568.92020266,0.00011215,2]
[399889725,1766817498376,5374.0,0.000142,5]
[399889728,1766817608181,-242.0,0.00011215,2]
[399889729,1766817608209,-173.24399585,0.00011215,2]
[399889731,1766817803239,-259.92935473,0.00011,2]
[399889732,1766817805991,-500.0,0.00011,2]
[399889733,1766817809766,-500.0,0.00011,2]
[399889734,1766817811860,-240.07064527,0.00011,2]
[399889735,1766817813990,-206.21057752,0.00011,2]
[399889748,1766817989163,999.0,0.00013483,3]
[399889755,1766818088199,-144.40465635,0.00011,2]
[399889756,1766818088224,-148.07934365,0.00011,2]
[399889757,1766818090893,-96.07749686,0.00011,2]
[399889758,1766818090919,-60.16073861,0.00011215,2]
[399889759,1766818208328,-171.13,0.00011215,2]
[399889760,1766818231407,-70.87,0.00011215,2]
[399889761,1766818231419,-5.07033997,0.00011215,2]
[399889762,1766818231429,-342.32602558,0.00011631,2]
[399889763,1766818231441,-732.93397442,0.00011631,2]
[399889764,1766818231452,-655.985575,0.00012046,2]
[399889765,1766818231464,-419.274425,0.00012046,2]
[399889766,1766818231475,-244.15684051,0.00012046,2]
[399889767,1766818231486,-250.0,0.000121,2]
[399889768,1766818231496,-908.17281952,0.00012461,2]
[399889769,1766818231509,-167.08718048,0.00012461,2]
[399889770,1766818231519,-244.15684051,0.00012461,2]
[399889771,1766818231530,-1075.26,0.00012877,2]
[399889772,1766818231540,-814.923772,0.00013225,2]
[399889773,1766818231550,-1075.26,0.00013292,2]
[399889774,1766818231561,-815.35,0.00013638,2]
[399889775,1766818231571,-1200.0,0.00013698,2]
[399889776,1766818231581,-353.72,0.00013699,2]
[399889777,1766818231591,-1200.0,0.00013705,2]
[399889779,1766818231601,-99.90643168,0.00013705,2]
[399889782,1766818231620,-200.09356832,0.00013705,2]
[399889783,1766818231630,-277.10957677,0.00013707,2]
[399889786,1766818231642,-798.15042323,0.00013707,2]
[399889788,1766818231653,-2878.02116923,0.00013961,2]
[399889790,1766818231662,-182187.82954996,0.00013961,2]
[399889793,1766818231675,-32206.10315004,0.00013961,2]
[399889796,1766818231684,-164.601493,0.00014023,2]
[399889799,1766818231694,-179.50398035,0.00014054,2]
[399889802,1766818231705,-1376.221,0.0001406,2]
[399889804,1766818231716,-150.0,0.0001406,2]
[399889807,1766818231730,-759.98,0.00014061,2]
[399889809,1766818231741,-315.27,0.00014061,2]
[399889810,1766818231751,-500.0,0.00014061,2]
[399889811,1766818231761,-500.0,0.00014061,2]
[399889812,1766818231771,-500.0,0.00014061,2]
[399889813,1766818231782,-500.0,0.00014061,2]
[399889814,1766818231792,-500.0,0.00014061,2]
[399889815,1766818231803,-500.0,0.00014061,2]
[399889816,1766818231813,-500.0,0.00014061,2]
[399889817,1766818231823,-500.0,0.00014061,2]
[399889818,1766818231833,-500.0,0.00014061,2]
[399889819,1766818231844,-500.0,0.00014061,2]
[399889820,1766818231854,-500.0,0.00014061,2]
[399889821,1766818231864,-500.0,0.00014061,2]
[399889822,1766818231875,-500.0,0.00014061,2]
[399889823,1766818231885,-500.0,0.00014061,2]
[399889824,1766818231895,-500.0,0.00014061,2]
[399889825,1766818231906,-500.0,0.00014061,2]
[399889826,1766818231916,-500.0,0.00014061,2]
[399889827,1766818231926,-500.0,0.00014061,2]
[399889828,1766818231936,-500.0,0.00014061,2]
[399889829,1766818231947,-500.0,0.00014061,2]
[399889831,1766818231957,-500.0,0.00014061,2]
[399889833,1766818231967,-500.0,0.00014061,2]
[399889835,1766818231978,-500.0,0.00014061,2]
[399889837,1766818231987,-500.0,0.00014061,2]
[399889839,1766818231996,-500.0,0.00014061,2]
[399889841,1766818232006,-500.0,0.00014061,2]
[399889843,1766818232016,-500.0,0.00014061,2]
[399889845,1766818232025,-500.0,0.00014061,2]
[399889847,1766818232035,-500.0,0.00014061,2]
[399889849,1766818232045,-500.0,0.00014061,2]
[399889851,1766818232055,-500.0,0.00014061,2]
[399889853,1766818232065,-500.0,0.00014061,2]
[399889855,1766818232075,-500.0,0.00014061,2]
[399889856,1766818232090,-500.0,0.00014061,2]
[399889857,1766818232102,-500.0,0.00014061,2]
[399889858,1766818232112,-461.76857983,0.00014061,2]
[399889859,1766818232122,-500.0,0.00014061,2]
[399889860,1766818232133,-500.0,0.00014061,2]
[399889861,1766818232143,-500.0,0.00014061,2]
[399889862,1766818232153,-500.0,0.00014061,2]
[399889863,1766818232164,-500.0,0.00014061,2]
[399889864,1766818232175,-500.0,0.00014061,2]
[399889865,1766818232185,-500.0,0.00014061,2]
[399889866,1766818232195,-500.0,0.00014061,2]
[399889867,1766818232205,-500.0,0.00014061,2]
[399889868,1766818232215,-500.0,0.00014061,2]
[399889869,1766818232225,-456.73524095,0.00014061,2]
[399889870,1766818237469,-867.21809766,0.00014123,2]
[399889871,1766818237482,-208.04190234,0.00014123,2]
[399889872,1766818237493,-315.27,0.00014335,2]
[399889873,1766818237503,-302.57994978,0.00014538,2]
[399889874,1766818237537,-772.68005022,0.00014538,2]
[399889875,1766818237547,-315.27,0.00014609,2]
[399889876,1766818237558,-315.27,0.00014883,2]
[399889877,1766818237568,-1075.26,0.00014954,2]
[399889878,1766818237579,-300.0,0.00015019,2]
[399889879,1766818237590,-1131.0,0.00015067,2]
[399889880,1766818237600,-151.0,0.00015081,2]
[399889881,1766818237610,-151.0,0.00015081,2]
[399889882,1766818237621,-151.0,0.00015081,2]
[399889883,1766818237631,-151.0,0.00015081,2]
[399889884,1766818237641,-315.3,0.00015157,2]
[399889885,1766818237651,-150.0,0.00015185,2]
[399889886,1766818237661,-1075.26,0.00015369,2]
[399889887,1766818237672,-1099.0,0.00015693,2]
[399889888,1766818237681,-1075.26,0.00015784,2]
[399889889,1766818237691,-1000.0,0.00015899,2]
[399889890,1766818237701,-500.0,0.00016094,2]
[399889891,1766818237711,-500.0,0.00016094,2]
[399889892,1766818237721,-319.51086651,0.00016094,2]
[399889894,1766818237732,-574.12855637,0.00016094,2]
[399889895,1766818237742,-500.0,0.00016094,2]
[399889896,1766818237751,-500.0,0.00016094,2]
[399889897,1766818237760,-500.0,0.00016094,2]
[399889898,1766818237771,-500.0,0.00016094,2]
[399889899,1766818237781,-500.0,0.00016094,2]
[399889901,1766818237790,-500.0,0.00016094,2]
[399889903,1766818237800,-500.0,0.00016094,2]
[399889904,1766818237810,-500.0,0.00016094,2]
[399889905,1766818237819,-500.0,0.00016094,2]
[399889906,1766818237829,-500.0,0.00016094,2]
[399889907,1766818237838,-500.0,0.00016094,2]
[399889908,1766818237848,-500.0,0.00016094,2]
[399889909,1766818237858,-500.0,0.00016094,2]
[399889910,1766818237868,-500.0,0.00016094,2]
[399889911,1766818237878,-500.0,0.00016094,2]
[399889912,1766818237888,-500.0,0.00016094,2]
[399889913,1766818237898,-689.66878,0.00016094,2]
[399889914,1766818237908,-500.0,0.00016094,2]
[399889915,1766818237918,-500.0,0.00016094,2]
[399889916,1766818237928,-272.00956049,0.00016094,2]
[399889917,1766818237939,-500.0,0.00016094,2]
[399889918,1766818237949,-500.0,0.00016094,2]
[399889919,1766818237958,-255.56587726,0.00016094,2]
[399889920,1766818237968,-358.86214175,0.00016094,2]
[399889921,1766818237978,-250.0,0.00016094,2]
[399889922,1766818237988,-250.0,0.00016094,2]
[399889923,1766818237998,-250.0,0.00016094,2]
[399889924,1766818238008,-250.0,0.00016094,2]
[399889925,1766818238018,-250.0,0.00016094,2]
[399889926,1766818238028,-250.0,0.00016094,2]
[399889927,1766818238038,-190.95582929,0.00016094,2]
[399889928,1766818238048,-1908.37,0.00016438,2]
[399889929,1766818238058,-1099.0,0.00016519,2]
[399889930,1766818238068,-196.55795366,0.00016642,2]
[399889931,1766818238081,-409.62487341,0.00016642,2]
[399889932,1766818238091,-826.59160822,0.0001666,2]
[399889933,1766818238102,-1000.0,0.000168,2]
[399889934,1766818238112,-10695.1695064,0.00016822,2]
[399889935,1766818238122,-204.3220801,0.00016838,2]
[399889936,1766818238133,-16294.0933648,0.00016865,2]
[399889937,1766818238143,-8923.5485,0.000169,2]
[399889938,1766818238153,-186.94339389,0.000169,2]
[399889939,1766818238163,-277.64120652,0.000169,2]
[399889940,1766818238173,-224.72342654,0.000169,2]
[399889941,1766818238183,-4255.18651099,0.000169,2]
[399889942,1766818238194,-500.0,0.000169,2]
[399889943,1766818238204,-500.0,0.000169,2]
[399889944,1766818238214,-500.0,0.000169,2]
[399889945,1766818238224,-500.0,0.000169,2]
[399889946,1766818238234,-500.0,0.000169,2]
[399889947,1766818238247,-326.1895363,0.000169,2]
[399889948,1766818238257,-300.0,0.00016999,2]
[399889949,1766818238268,-348.76761575,0.00016999,2]
[399889950,1766818238277,-500.0,0.00016999,2]
[399889951,1766818238287,-386.3883659,0.00016999,2]
[399889952,1766818238297,-500.0,0.00016999,2]